fUST/lending_fUST_20250918
["ID","MTS","AMOUNT","RATE_DAILY","PERIOD"]
[386047447,1758198641210,-480.0,0.00022561,3]
[386047448,1758198641219,-480.0,0.00022561,3]
[386047449,1758198641228,-480.0,0.00022561,3]
[386047450,1758198641237,-480.0,0.00022561,3]
[386047451,1758198641247,-480.0,0.00022561,3]
[386047452,1758198641256,-480.0,0.00022561,3]
[386047453,1758198641267,-480.0,0.00022561,3]
[386047454,1758198641276,-480.0,0.00022561,3]
[386047455,1758198641285,-177.46757877,0.00022561,3]
[386047456,1758198641294,-480.0,0.00022561,3]
[386047457,1758198641303,-480.0,0.00022561,3]
[386047458,1758198641312,-480.0,0.00022561,3]
[386047459,1758198641321,-480.0,0.00022561,3]
[386047460,1758198641331,-480.0,0.00022561,3]
[386047461,1758198641341,-480.0,0.00022561,3]
[386047462,1758198641350,-480.0,0.00022561,3]
[386047463,1758198641359,-480.0,0.00022561,3]
[386047464,1758198641368,-480.0,0.00022561,3]
[386047465,1758198641378,-480.0,0.00022561,3]
[386047466,1758198641389,-480.0,0.00022561,3]
[386047467,1758198641398,-480.0,0.00022561,3]
[386047468,1758198641407,-1050.97,0.00022561,3]
[386047469,1758198641417,-480.0,0.00022561,3]
[386047470,1758198641426,-480.0,0.00022561,3]
[386047471,1758198641435,-480.0,0.00022561,3]
[386047472,1758198641445,-480.0,0.00022561,3]
[386047473,1758198641454,-480.0,0.00022561,3]
[386047474,1758198641463,-480.0,0.00022561,3]
[386047475,1758198641472,-481.79356785,0.00022561,3]
[386047476,1758198641482,-480.0,0.00022561,3]
[386047477,1758198641491,-480.0,0.00022561,3]
[386047478,1758198641500,-480.0,0.00022561,3]
[386047479,1758198641510,-480.0,0.00022561,3]
[386047480,1758198641520,-480.0,0.00022561,3]
[386047481,1758198641529,-480.0,0.00022561,3]
[386047482,1758198641540,-578.01573287,0.00022561,3]
[386047483,1758198641549,-480.0,0.00022561,3]
[386047484,1758198641558,-480.0,0.00022561,3]
[386047485,1758198641567,-480.0,0.00022561,3]
[386047486,1758198641576,-480.0,0.00022561,3]
[386047487,1758198641586,-480.61676135,0.00022561,3]
[386047488,1758198641595,-480.0,0.00022561,3]
[386047489,1758198641604,-480.0,0.00022561,3]
[386047490,1758198641614,-480.0,0.00022561,3]
[386047491,1758198641623,-480.0,0.00022561,3]
[386047492,1758198641634,-503.10003186,0.00022561,3]
[386047493,1758198641643,-502.07475793,0.00022561,3]
[386047494,1758198641651,-480.0,0.00022561,3]
[386047495,1758198641660,-493.35566847,0.00022561,3]
[386047496,1758198641670,-486.14376906,0.00022561,3]
[386047497,1758198641679,-480.0,0.00022561,3]
[386047498,1758198641688,-480.0,0.00022561,3]
[386047499,1758198641698,-480.0,0.00022561,3]
[386047500,1758198641707,-480.0,0.00022561,3]
[386047501,1758198641717,-480.0,0.00022561,3]
[386047502,1758198641726,-266.27659329,0.00022561,3]
[386047503,1758198641736,-483.86033581,0.00022561,3]
[386047504,1758198641745,-480.0,0.00022561,3]
[386047505,1758198641755,-480.0,0.00022561,3]
[386047506,1758198641765,-480.0,0.00022561,3]
[386047507,1758198641775,-480.0,0.00022561,3]
[386047508,1758198641784,-480.0,0.00022561,3]
[386047509,1758198641793,-500.0,0.00022561,3]
[386047510,1758198641803,-65154.50790307,0.00022562,2]
[386047511,1758198641884,-416.31000001,0.00022562,2]
[386047539,1758198643581,-99.65208957,0.00022562,2]
[386047540,1758198643593,-66556.26868219,0.00022562,2]
[386047541,1758198643604,-1112.76791051,0.00022562,2]
[386047542,1758198643615,-2843.42101547,0.00022562,2]
[386047543,1758198643641,-220081.17565785,0.00022562,2]
[386047544,1758198643650,-164.62109359,0.00022573,2]
[386047545,1758198643661,-500.0,0.00022573,2]
[386047546,1758198643670,-500.0,0.00022573,2]
[386047547,1758198643679,-500.0,0.00022573,2]
[386047548,1758198643689,-150.0,0.00022573,2]
[386047549,1758198643698,-500.0,0.00022573,2]
[386047550,1758198643707,-500.0,0.00022573,2]
[386047551,1758198643717,-191.63,0.000226,7]
[386047552,1758198643726,-500.0,0.00022659,3]
[386047553,1758198643736,-500.0,0.00022659,3]
[386047554,1758198643745,-500.0,0.00022659,3]
[386047555,1758198643754,-480.0,0.00022659,3]
[386047556,1758198643764,-480.0,0.00022659,3]
[386047557,1758198643773,-480.0,0.00022659,3]
[386047558,1758198643782,-480.0,0.00022659,3]
[386047559,1758198643792,-480.0,0.00022659,3]
[386047560,1758198643802,-480.0,0.00022659,3]
[386047561,1758198643811,-480.0,0.00022659,3]
[386047562,1758198643821,-480.0,0.00022659,3]
[386047563,1758198643830,-480.0,0.00022659,3]
[386047564,1758198643840,-480.0,0.00022659,3]
[386047565,1758198643849,-480.0,0.00022659,3]
[386047566,1758198643858,-480.0,0.00022659,3]
[386047567,1758198643867,-480.0,0.00022659,3]
[386047568,1758198643877,-482.294357,0.0002266,3]
[386047569,1758198643886,-500.0,0.0002266,3]
[386047570,1758198643896,-589.51998137,0.0002266,3]
[386047571,1758198643906,-480.0,0.0002266,3]
[386047572,1758198643915,-480.0,0.0002266,3]
[386047573,1758198643924,-480.0,0.0002266,3]
[386047574,1758198643933,-484.08786712,0.0002266,3]
[386047575,1758198643943,-480.0,0.0002266,3]
[386047576,1758198643952,-480.0,0.0002266,3]
[386047577,1758198643961,-480.0,0.0002266,3]
[386047578,1758198643970,-480.0,0.0002266,3]
[386047579,1758198643980,-480.0,0.0002266,3]
[386047580,1758198643989,-480.0,0.0002266,3]
[386047581,1758198643998,-480.0,0.0002266,3]
[386047582,1758198644007,-482.67042957,0.0002266,3]
[386047583,1758198644017,-480.0,0.0002266,3]
[386047584,1758198644026,-480.0,0.0002266,3]
[386047585,1758198644035,-480.0,0.0002266,3]
[386047586,1758198644044,-480.0,0.0002266,3]
[386047587,1758198644054,-480.0,0.0002266,3]
[386047588,1758198644063,-480.0,0.0002266,3]
[386047589,1758198644072,-480.0,0.0002266,3]
[386047590,1758198644081,-480.0,0.0002266,3]
[386047591,1758198644091,-480.0,0.0002266,3]
[386047592,1758198644100,-480.0,0.0002266,3]
[386047593,1758198644109,-480.0,0.0002266,3]
[386047594,1758198644118,-480.0,0.0002266,3]
[386047595,1758198644127,-480.0,0.0002266,3]
[386047596,1758198644137,-480.0,0.0002266,3]
[386047597,1758198644146,-480.0,0.0002266,3]
[386047598,1758198644155,-480.0,0.0002266,3]
[386047599,1758198644164,-480.0,0.0002266,3]
[386047600,1758198644174,-480.0,0.0002266,3]
[386047601,1758198644184,-561.46387333,0.00022661,3]
[386047602,1758198644193,-480.0,0.00022661,3]
[386047603,1758198644202,-480.0,0.00022661,3]
[386047604,1758198644212,-480.0,0.00022661,3]
[386047605,1758198644221,-480.0,0.00022661,3]
[386047606,1758198644230,-504.11039704,0.00022673,2]
[386047607,1758198644239,-500.0,0.00022673,2]
[386047608,1758198644248,-496.18137451,0.00022673,2]
[386047609,1758198644257,-381.60716843,0.00022673,2]
[386047610,1758198644268,-302.78704735,0.00022673,2]
[386047611,1758198644277,-500.0,0.00022673,2]
[386047612,1758198644286,-500.0,0.00022673,2]
[386047613,1758198644295,-500.0,0.00022673,2]
[386047614,1758198644305,-300.0,0.0002271,2]
[386047615,1758198644315,-1000.0,0.00022797,2]
[386047616,1758198644324,-480.0,0.00022833,3]
[386047617,1758198644333,-611.04,0.00022833,3]
[386047618,1758198644343,-480.0,0.00022833,3]
[386047619,1758198644352,-480.0,0.00022833,3]
[386047620,1758198644361,-480.0,0.00022833,3]
[386047621,1758198644370,-480.0,0.00022833,3]
[386047622,1758198644379,-480.0,0.00022833,3]
[386047623,1758198644389,-190.29591811,0.00022834,3]
[386047624,1758198644398,-480.0,0.00022834,3]
[386047625,1758198644412,-480.0,0.00022834,3]
[386047626,1758198644421,-480.0,0.00022834,3]
[386047627,1758198644430,-480.0,0.00022834,3]
[386047628,1758198644439,-480.0,0.00022834,3]
[386047629,1758198644450,-480.0,0.00022834,3]
[386047630,1758198644459,-1740.09,0.00022834,3]
[386047631,1758198644468,-480.0,0.00022834,3]
[386047632,1758198644477,-480.0,0.00022834,3]
[386047633,1758198644489,-480.0,0.00022834,3]
[386047634,1758198644498,-340.75279992,0.00022834,3]
[386047635,1758198644507,-955.82,0.00022834,3]
[386047636,1758198644517,-480.0,0.00022834,3]
[386047637,1758198644527,-480.0,0.00022834,3]
[386047638,1758198644536,-675.58,0.00022834,3]
[386047639,1758198644544,-480.0,0.00022835,3]
[386047640,1758198644554,-480.0,0.00022835,3]
[386047641,1758198644563,-480.0,0.00022835,3]
[386047642,1758198644573,-294.96565972,0.00022835,3]
[386047643,1758198644582,-1050.97,0.00022835,3]
[386047644,1758198644592,-480.0,0.00022835,3]
[386047645,1758198644601,-462.39903428,0.00022835,3]
[386047646,1758198644610,-480.0,0.00022835,3]
[386047647,1758198644619,-480.0,0.00022835,3]
[386047648,1758198644629,-480.0,0.00022835,3]
[386047649,1758198644638,-480.0,0.00022835,3]
[386047650,1758198644647,-480.0,0.00022835,3]
[386047651,1758198644656,-480.0,0.00022835,3]
[386047652,1758198644666,-480.0,0.00022835,3]
[386047653,1758198644675,-480.0,0.00022835,3]
[386047654,1758198644685,-500.0,0.00022835,3]
[386047655,1758198644694,-450.0,0.00022847,2]
[386047656,1758198644704,-359.85380864,0.00022933,3]
[386047657,1758198644713,-480.0,0.00022933,3]
[386047658,1758198644723,-480.0,0.00022933,3]
[386047659,1758198644733,-480.0,0.00022934,3]
[386047660,1758198644742,-480.0,0.00022934,3]
[386047661,1758198644751,-480.0,0.00022934,3]
[386047662,1758198644761,-480.0,0.00022934,3]
[386047663,1758198644773,-480.0,0.00022934,3]
[386047664,1758198644783,-480.0,0.00022935,3]
[386047665,1758198644792,-480.0,0.00022935,3]
[386047666,1758198644801,-219.90561817,0.00022984,2]
[386047667,1758198644811,-177.45,0.00023107,3]
[386047668,1758198644820,-480.0,0.00023107,3]
[386047669,1758198644830,-480.0,0.00023107,3]
[386047670,1758198644839,-480.0,0.00023107,3]
[386047671,1758198644849,-290.3,0.00023108,3]
[386047672,1758198644858,-480.0,0.00023108,3]
[386047673,1758198644867,-1740.09,0.00023108,3]
[386047674,1758198644876,-480.0,0.00023108,3]
[386047675,1758198644886,-480.0,0.00023108,3]
[386047676,1758198644896,-480.0,0.00023108,3]
[386047677,1758198644905,-955.82,0.00023108,3]
[386047678,1758198644915,-350.34,0.00023108,3]
[386047679,1758198644924,-480.0,0.00023108,3]
[386047680,1758198644933,-675.58,0.00023108,3]
[386047681,1758198644942,-480.0,0.00023109,3]
[386047682,1758198644952,-480.0,0.00023109,3]
[386047683,1758198644961,-1050.97,0.00023109,3]
[386047684,1758198644970,-480.0,0.00023109,3]
[386047685,1758198644979,-480.0,0.00023109,3]
[386047686,1758198644989,-424.96540003,0.00023109,3]
[386047687,1758198644998,-500.0,0.00023121,2]
[386047688,1758198645008,-540.80886024,0.00023205,2]
[386047689,1758198645019,-1000.0,0.00023221,2]
[386047690,1758198645028,-160.0,0.00023273,2]
[386047691,1758198645037,-160.0,0.00023273,2]
[386047692,1758198645047,-847.96496735,0.00023273,2]
[386047693,1758198645056,-160.0,0.00023273,2]
[386047694,1758198645066,-160.0,0.00023273,2]
[386047695,1758198645075,-233.39271932,0.00023273,2]
[386047696,1758198645084,-500.0,0.00023287,2]
[386047697,1758198645093,-500.0,0.0002333,2]
[386047698,1758198645103,-480.0,0.00023381,3]
[386047699,1758198645112,-480.0,0.00023381,3]
[386047700,1758198645123,-480.0,0.00023381,3]
[386047701,1758198645132,-480.0,0.00023382,3]
[386047702,1758198645142,-1740.09,0.00023382,3]
[386047703,1758198645151,-480.0,0.00023382,3]
[386047704,1758198645160,-163.88,0.00023382,3]
[386047705,1758198645168,-488.47,0.00023382,3]
[386047706,1758198645178,-955.82,0.00023382,3]
[386047707,1758198645188,-480.0,0.00023382,3]
[386047708,1758198645197,-675.58,0.00023382,3]
[386047709,1758198645215,-480.0,0.00023383,3]
[386047711,1758198645226,-165.70797157,0.00023383,3]
[386047713,1758198645242,-314.29202843,0.00023383,3]
[386047714,1758198645251,-1050.97,0.00023383,3]
[386047715,1758198645260,-480.0,0.00023383,3]
[386047716,1758198645272,-296.0,0.00023516,2]
[386047717,1758198645282,-160.0,0.00023544,2]
[386047718,1758198645291,-692.48082224,0.00023545,2]
[386047719,1758198645303,-90.2039397,0.00023545,2]
[386047720,1758198645313,-24356.21807267,0.00023545,2]
[386047721,1758198645324,-300.00072039,0.00023545,2]
[386047725,1758198645827,-9271.9999999,0.00023545,2]
[386047726,1758198645885,-1125.72127738,0.00023545,2]
[386047727,1758198645897,-914.50681172,0.00023545,2]
[386047731,1758198690539,-9520.0093402,0.0002246,2]
[386047732,1758198690662,-10000.01,0.0002246,2]
[386047733,1758198700165,-10000.01,0.0002246,2]
[386047734,1758198700257,-10000.01,0.0002246,2]
[386047735,1758198703306,-339.42339249,0.0002246,2]
[386047736,1758198705419,-300.0,0.0002246,2]
[386047737,1758198710874,-927.2439841,0.00022217,2]
[386047738,1758198710910,-8145.5220318,0.0002246,2]
[386047739,1758198711153,-10000.01,0.0002246,2]
[386047740,1758198718024,-10000.01,0.0002246,2]
[386047741,1758198718151,-10000.01,0.0002246,2]
[386047742,1758198720766,-10000.01,0.0002246,2]
[386047743,1758198760357,203.01586484,0.000199,2]
[386047744,1758198760397,203.01586456,0.00021149,2]
[386047745,1758198795038,-203.01586456,0.00022398,2]
[386047746,1758198795066,-1200.0,0.00022459,2]
[386047747,1758198795095,-300.0,0.00022459,2]
[386047748,1758198795125,-339.42339249,0.00022459,2]
[386047749,1758198795233,-5509.09975678,0.0002246,2]
[386047750,1758198795257,-10000.01,0.0002246,2]
[386047751,1758198800973,-10000.01,0.0002246,2]
[386047752,1758198801073,-10000.01,0.0002246,2]
[386047754,1758198886821,666.0,0.00021817,2]
[386047755,1758198913131,9334.01,0.00021778,2]
[386047756,1758198913154,665.99,0.00021778,2]
[386047765,1758198944425,203.01586458,0.000199,2]
[386047766,1758198944518,203.01586457,0.00021293,2]
[386047767,1758198981648,8927.98827085,0.00021716,2]
[386047768,1758198981670,7698.64070445,0.00021716,2]
[386047769,1758199005687,-480.0,0.00022459,3]
[386047770,1758199005717,-201.02,0.00022459,3]
[386047771,1758199005747,-480.0,0.00022459,3]
[386047772,1758199005775,-480.0,0.00022459,3]
[386047773,1758199005804,-300.0,0.00022459,2]
[386047774,1758199005832,-2534.51183954,0.0002246,2]
[386047775,1758199005966,-1048.94632092,0.0002246,2]
[386047776,1758199005995,-1200.0,0.00022557,2]
[386047777,1758199006024,-480.0,0.00022558,3]
[386047778,1758199006053,-480.0,0.00022558,3]
[386047779,1758199006094,-300.0,0.00022558,2]
[386047780,1758199014418,-6332.43297463,0.00022559,2]
[386047781,1758199014670,-4824.85562774,0.00022559,2]
[386047782,1758199014705,-350.29874452,0.00022559,3]
[386047783,1758199048381,-300.0,0.00022558,2]
[386047784,1758199048410,-1200.0,0.00022558,2]
[386047785,1758199048438,-480.0,0.00022559,3]
[386047786,1758199048466,-1558.72,0.00022559,3]
[386047787,1758199048495,-480.0,0.00022559,3]
[386047788,1758199048524,-810.12,0.00022559,3]
[386047789,1758199048624,-342.33,0.00022559,3]
[386047790,1758199130185,203.01586457,0.000199,2]
[386047791,1758199130285,203.01586457,0.00021409,2]
[386047792,1758199158462,-161.205124,0.00022043,2]
[386047793,1758199158490,-638.2399141,0.00022271,2]
[386047794,1758199158519,-480.0,0.00022459,3]
[386047795,1758199158550,-1493.78,0.00022459,3]
[386047796,1758199158579,-480.0,0.00022558,3]
[386047797,1758199158609,-480.0,0.00022558,3]
[386047798,1758199158639,-206.06,0.00022559,3]
[386047799,1758199158668,-480.0,0.00022559,3]
[386047800,1758199158698,-285.6299238,0.0002256,3]
[386047801,1758199159050,-225.95908763,0.0002256,3]
[386047802,1758199193410,-10000.01,0.00022471,2]
[386047803,1758199193560,-10000.01,0.00022471,2]
[386047804,1758199193683,-10000.01,0.00022471,2]
[386047805,1758199193805,-1089.6365175,0.00022471,2]
[386047806,1758199193830,-7820.736965,0.00022471,2]
[386047808,1758199313109,201.7687493,0.000199,2]
[386047809,1758199313201,201.7687491,0.00021293,2]
[386047811,1758199461625,8718.34,0.00028,30]
[386047812,1758199494154,204.82724922,0.000199,2]
[386047813,1758199494267,204.82724917,0.00021409,2]
[386047814,1758199641959,150.0,0.00020604,2]
[386047815,1758199642436,150.0,0.00021585,2]
[386047816,1758199672333,1000.0,0.00021753,2]
[386047817,1758199675443,202.66919767,0.000199,2]
[386047818,1758199675524,202.66919759,0.00021194,2]
[386047819,1758199715991,150.0,0.00020634,2]
[386047820,1758199716495,150.0,0.00021616,2]
[386047821,1758199765819,213.7600859,0.00021754,2]
[386047825,1758199789589,150.0,0.00020633,2]
[386047826,1758199790144,150.0,0.00021616,2]
[386047827,1758199803166,6667.71952205,0.0002159,2]
[386047828,1758199803189,4166.454335,0.0002159,2]
[386047849,1758199837413,-611.726451,0.00022083,2]
[386047850,1758199837423,-202.66919759,0.00022487,2]
[386047851,1758199837432,-150.0,0.00022566,2]
[386047852,1758199837441,-36.72225744,0.0002273,2]
[386047853,1758199837452,-123.27774256,0.0002273,2]
[386047854,1758199837462,-580.97225759,0.00022746,2]
[386047855,1758199837473,-740.19601894,0.00022746,2]
[386047856,1758199837483,-761.64806756,0.00022746,2]
[386047857,1758199837494,-337.74345671,0.00022746,2]
[386047858,1758199837504,-300.0,0.00022829,2]
[386047859,1758199837513,-300.0,0.00022829,2]
[386047860,1758199837522,-62.25191449,0.00022829,2]
[386047862,1758199837533,-237.74808551,0.00022829,2]
[386047864,1758199837543,-1200.0,0.00022829,2]
[386047865,1758199837552,-500.0,0.00022829,2]
[386047866,1758199837562,-33.26498379,0.00022829,2]
[386047868,1758199837574,-466.73501621,0.00022829,2]
[386047869,1758199837583,-82.57097001,0.00022829,2]
[386047870,1758199837594,-417.42902999,0.00022829,2]
[386047871,1758199837603,-500.0,0.00022829,2]
[386047872,1758199837612,-500.0,0.00022829,2]
[386047873,1758199837621,-500.0,0.00022829,2]
[386047874,1758199837631,-500.0,0.00022829,2]
[386047876,1758199837640,-500.0,0.00022829,2]
[386047877,1758199837649,-500.0,0.00022829,2]
[386047878,1758199837659,-600.0,0.00022829,2]
[386047879,1758199837668,-550.0,0.00022829,2]
[386047880,1758199837677,-500.0,0.00022829,2]
[386047881,1758199837686,-500.0,0.00022829,2]
[386047882,1758199837696,-500.0,0.00022829,2]
[386047883,1758199837706,-500.0,0.00022829,2]
[386047884,1758199837715,-500.0,0.00022829,2]
[386047885,1758199837724,-500.0,0.00022829,2]
[386047886,1758199837733,-500.0,0.00022829,2]
[386047887,1758199837743,-500.0,0.00022829,2]
[386047888,1758199837751,-500.0,0.00022829,2]
[386047889,1758199837761,-304.45024018,0.00022829,2]
[386047890,1758199837771,-500.0,0.00022829,2]
[386047891,1758199837780,-500.0,0.00022829,2]
[386047892,1758199837790,-615.884372,0.00022829,2]
[386047893,1758199837800,-462.70587105,0.00022829,2]
[386047894,1758199837810,-500.0,0.00022829,2]
[386047895,1758199837819,-500.0,0.00022829,2]
[386047896,1758199837829,-500.0,0.00022829,2]
[386047897,1758199837838,-500.0,0.00022829,2]
[386047898,1758199837848,-500.0,0.00022829,2]
[386047900,1758199837857,-500.0,0.00022829,2]
[386047902,1758199837866,-500.0,0.00022829,2]
[386047903,1758199837876,-531.33815006,0.00022829,2]
[386047904,1758199837885,-500.0,0.00022829,2]
[386047905,1758199837895,-500.0,0.00022829,2]
[386047906,1758199837904,-500.0,0.00022829,2]
[386047908,1758199837914,-500.0,0.00022829,2]
[386047910,1758199837927,-500.0,0.00022829,2]
[386047912,1758199837937,-500.0,0.00022829,2]
[386047914,1758199837947,-500.0,0.00022829,2]
[386047915,1758199837956,-500.0,0.00022829,2]
[386047916,1758199837966,-500.0,0.0002283,2]
[386047917,1758199837975,-1200.0,0.0002283,2]
[386047918,1758199837984,-480.0,0.0002283,3]
[386047919,1758199837994,-480.0,0.0002283,3]
[386047920,1758199838003,-480.0,0.0002283,3]
[386047921,1758199838014,-480.0,0.0002283,3]
[386047922,1758199838025,-854.49,0.00022831,3]
[386047923,1758199838035,-480.0,0.00022831,3]
[386047924,1758199838044,-480.0,0.00022832,3]
[386047925,1758199838053,-480.0,0.00023104,3]
[386047926,1758199838065,-483.50642814,0.00023105,3]
[386047927,1758199838074,-480.0,0.00023105,3]
[386047928,1758199838084,-854.49,0.00023105,3]
[386047929,1758199838093,-480.0,0.00023105,3]
[386047930,1758199838103,-480.0,0.00023105,3]
[386047931,1758199838112,-480.0,0.00023105,3]
[386047932,1758199838121,-480.0,0.00023107,3]
[386047933,1758199838131,-1431.54,0.00023107,3]
[386047934,1758199838141,-480.0,0.00023107,3]
[386047935,1758199838154,-439.57630129,0.00023107,3]
[386047936,1758199838163,-480.0,0.00023107,7]
[386047937,1758199838173,-480.0,0.00023107,3]
[386047938,1758199838182,-776.36,0.00023107,3]
[386047939,1758199838193,-525.54,0.00023107,3]
[386047940,1758199838203,-480.0,0.00023107,3]
[386047941,1758199838212,-480.0,0.00023107,3]
[386047942,1758199838221,-160.0,0.00023135,2]
[386047943,1758199838234,-2605.0,0.00023155,2]
[386047944,1758199838245,-357.65021394,0.00023355,2]
[386047945,1758199838257,-480.0,0.00023378,3]
[386047946,1758199838270,-480.0,0.00023379,3]
[386047947,1758199838282,-854.49,0.00023379,3]
[386047948,1758199838293,-422.02308252,0.00023379,3]
[386047949,1758199838309,-480.0,0.00023379,3]
[386047950,1758199838319,-480.0,0.00023381,3]
[386047951,1758199838329,-1431.54,0.00023381,3]
[386047952,1758199838340,-480.0,0.00023381,3]
[386047953,1758199838352,-776.36,0.00023381,3]
[386047954,1758199838363,-525.54,0.00023381,3]
[386047955,1758199838374,-480.0,0.00023381,3]
[386047956,1758199838384,-311.43,0.00023435,3]
[386047957,1758199838395,-155.72,0.00023435,3]
[386047958,1758199838406,-467.18,0.00023435,3]
[386047959,1758199838417,-385.0,0.00023435,10]
[386047960,1758199838428,-206.8324367,0.00023444,2]
[386047961,1758199838439,-213.333292,0.00023444,2]
[386047962,1758199838451,-4544.54705033,0.00023445,2]
[386047963,1758199838464,-378.58896965,0.00023445,2]
[386047964,1758199838476,-1439.41,0.00023445,2]
[386047965,1758199838489,-470.895,0.00023445,2]
[386047966,1758199838503,-351.27555648,0.00023445,2]
[386047967,1758199838516,-9961.74681729,0.00023445,2]
[386047968,1758199838530,-23312.48044269,0.00023445,2]
[386047969,1758199838543,-8495.9432571,0.00023445,2]
[386047977,1758199840210,-6346.52249796,0.00023445,2]
[386047984,1758199843346,-1144.0,0.00023445,2]
[386047985,1758199843358,-23480.619995,0.00023445,2]
[386047992,1758199846154,-3119.16652383,0.00023445,2]
[386047993,1758199846171,-17851.96165883,0.00023445,2]
[386047994,1758199846267,-4120.04839328,0.00023445,2]
[386047995,1758199846281,-7468.70679486,0.00023445,2]
[386047996,1758199846291,-3131.11207212,0.00023455,2]
[386047997,1758199846303,-13684.36755145,0.00023531,2]
[386047998,1758199846318,-680.90757339,0.00023531,2]
[386047999,1758199856861,208.23586371,0.000199,2]
[386048000,1758199856941,208.23586363,0.00021149,2]
[386048001,1758199863871,-208.23586363,0.00022398,2]
[386048002,1758199863896,-46.44739045,0.0002283,3]
[386048003,1758199866107,-433.55260955,0.0002283,3]
[386048004,1758199866130,-43.25497852,0.00023104,3]
[386048005,1758199869679,-393.72357633,0.00023104,3]
[386048006,1758199893726,1920.0,0.00030367,50]
[386048007,1758199934627,150.0,0.00020734,2]
[386048008,1758199935090,150.0,0.00021721,2]
[386048009,1758199970781,-203.01965882,0.00022364,2]
[386048010,1758199975140,-159.60850706,0.00022364,2]
[386048011,1758199978532,-217.43191248,0.00022364,2]
[386048012,1758200004074,150.0,0.00020774,2]
[386048013,1758200004539,150.0,0.00021763,2]
[386048035,1758200039555,213.48066836,0.000199,2]
[386048036,1758200039663,213.4806683,0.00021149,2]
[386048037,1758200053779,156.2626736,0.00027644,30]
[386048038,1758200070002,150.0,0.00020783,2]
[386048039,1758200070438,150.0,0.00021773,2]
[386048041,1758200136991,150.0,0.00020737,2]
[386048042,1758200137458,150.0,0.00021724,2]
[386048043,1758200202929,150.0,0.0002073,2]
[386048045,1758200215412,-303.95768345,0.000219,2]
[386048046,1758200218661,-1.90554155,0.000219,2]
[386048047,1758200221030,161.205124,0.00021743,2]
[386048048,1758200222736,-169.06629128,0.00022244,2]
[386048049,1758200224810,-163.992393,0.00022244,2]
[386048050,1758200226849,-187.55991962,0.00022244,2]
[386048051,1758200227523,3.59004669,0.000199,2]
[386048052,1758200227550,220.63338721,0.000199,2]
[386048053,1758200227580,224.22343362,0.00021149,2]
[386048061,1758200410360,227.90842861,0.000199,2]
[386048062,1758200410443,227.90842854,0.00021149,2]
[386048063,1758200434255,-151.56057425,0.00021959,8]
[386048064,1758200434285,-569.55656994,0.00022244,2]
[386048065,1758200434315,-500.0,0.00022244,2]
[386048066,1758200434345,-666.0,0.00022344,2]
[386048067,1758200434376,-300.0,0.00022362,2]
[386048068,1758200434407,-702.0,0.00022362,2]
[386048069,1758200434436,-1146.0,0.00022363,2]
[386048070,1758200434465,-207.0,0.00022363,2]
[386048071,1758200434673,-580.07007836,0.00022364,2]
[386048072,1758200434856,-1160.14015672,0.00022364,2]
[386048073,1758200435088,-715.46146567,0.00022364,2]
[386048074,1758200444475,-3035.74177911,0.00022364,2]